[Event "*** Titled Tuesday Blitz"]
[Site "Chess.com"]
[Date "2020.12.01"]
[Round "11"]
[White "suyu28"]
[Black "sergiochess83"]
[Result "1/2-1/2"]
[WhiteElo "2666"]
[BlackElo "2800"]
[TimeControl "180+1"]
[EndTime "12:06:07 PST"]
[Termination "Game drawn by repetition"]

1. d4 {[%clk 0:02:57.8]} 1... Nf6 {[%clk 0:02:59.5]} 2. Bf4 {[%clk 0:02:56.9]}
2... c5 {[%clk 0:02:58.6]} 3. d5 {[%clk 0:02:56.6]} 3... d6 {[%clk 0:02:50.2]}
4. c4 {[%clk 0:02:53.9]} 4... e5 {[%clk 0:02:44.2]} 5. dxe6 {[%clk 0:02:53.7]}
5... Bxe6 {[%clk 0:02:43.9]} 6. e3 {[%clk 0:02:54.1]} 6... d5 {[%clk 0:02:41.4]}
7. cxd5 {[%clk 0:02:49.4]} 7... Nxd5 {[%clk 0:02:41.2]} 8. Bg3 {[%clk
0:02:50.2]} 8... Nc6 {[%clk 0:02:39.9]} 9. Nf3 {[%clk 0:02:50.4]} 9... Be7
{[%clk 0:02:38]} 10. Nc3 {[%clk 0:02:48.1]} 10... Nxc3 {[%clk 0:02:33.1]} 11.
bxc3 {[%clk 0:02:49]} 11... Bf6 {[%clk 0:02:20.7]} 12. Qc2 {[%clk 0:02:43.2]}
12... Qa5 {[%clk 0:02:19]} 13. Rc1 {[%clk 0:02:28.1]} 13... Qxa2 {[%clk
0:02:18.8]} 14. Bb5 {[%clk 0:02:27.3]} 14... Qxc2 {[%clk 0:02:15.4]} 15. Rxc2
{[%clk 0:02:27.5]} 15... Bd5 {[%clk 0:02:09.8]} 16. O-O {[%clk 0:02:25.9]} 16...
a6 {[%clk 0:02:06.8]} 17. Bd3 {[%clk 0:02:20.1]} 17... c4 {[%clk 0:02:00.9]} 18.
Be2 {[%clk 0:02:19.4]} 18... Be4 {[%clk 0:01:43.5]} 19. Rcc1 {[%clk 0:02:18.1]}
19... Na5 {[%clk 0:01:34.9]} 20. Nd2 {[%clk 0:02:16.1]} 20... Bd3 {[%clk
0:01:26]} 21. Bxd3 {[%clk 0:02:15.6]} 21... cxd3 {[%clk 0:01:26.9]} 22. Ne4
{[%clk 0:02:16.5]} 22... Nc4 {[%clk 0:01:23.2]} 23. Nc5 {[%clk 0:01:59.8]} 23...
O-O-O {[%clk 0:01:22.5]} 24. Rfd1 {[%clk 0:01:56.7]} 24... d2 {[%clk 0:01:18.6]}
25. Rb1 {[%clk 0:01:55.2]} 25... b6 {[%clk 0:01:09.3]} 26. Rb4 {[%clk 0:01:47]}
26... bxc5 {[%clk 0:00:48.6]} 27. Rxc4 {[%clk 0:01:46.8]} 27... Be7 {[%clk
0:00:46.3]} 28. Ra4 {[%clk 0:01:33.1]} 28... Rd3 {[%clk 0:00:40]} 29. Rxa6
{[%clk 0:01:25.2]} 29... Kb7 {[%clk 0:00:40.1]} 30. Ra2 {[%clk 0:01:20.1]} 30...
Ra8 {[%clk 0:00:38.9]} 31. Rb2+ {[%clk 0:01:12.4]} 31... Kc6 {[%clk 0:00:38.8]}
32. Kf1 {[%clk 0:01:12.2]} 32... Bf6 {[%clk 0:00:19.7]} 33. Rbxd2 {[%clk
0:01:10.6]} 33... Rxd2 {[%clk 0:00:17.7]} 34. Rxd2 {[%clk 0:01:11.5]} 34... Bxc3
{[%clk 0:00:16.4]} 35. Rc2 {[%clk 0:01:11.9]} 35... Bb4 {[%clk 0:00:11.1]} 36.
e4 {[%clk 0:01:07.5]} 36... Kb5 {[%clk 0:00:11]} 37. Bd6 {[%clk 0:01:06.6]}
37... Ra3 {[%clk 0:00:08.4]} 38. Ke2 {[%clk 0:01:04.6]} 38... c4 {[%clk
0:00:08.7]} 39. Be5 {[%clk 0:00:42.7]} 39... g6 {[%clk 0:00:08.8]} 40. Bd4
{[%clk 0:00:40.5]} 40... Bc5 {[%clk 0:00:08.3]} 41. Bc3 {[%clk 0:00:35.8]} 41...
Rb3 {[%clk 0:00:08.4]} 42. f4 {[%clk 0:00:28.7]} 42... Bb4 {[%clk 0:00:08.1]}
43. Bd4 {[%clk 0:00:25.6]} 43... Rd3 {[%clk 0:00:08.2]} 44. Be3 {[%clk
0:00:24.7]} 44... Rc3 {[%clk 0:00:05.6]} 45. Rb2 {[%clk 0:00:23.2]} 45... Rb3
{[%clk 0:00:06]} 46. Rc2 {[%clk 0:00:23.2]} 46... Rc3 {[%clk 0:00:06]} 47. Rb2
{[%clk 0:00:22.1]} 47... Rb3 {[%clk 0:00:06.4]} 48. Rc2 {[%clk 0:00:22]} 48...
Rc3 {[%clk 0:00:06.7]} 1/2-1/2

[Event "*** Titled Tuesday Blitz"]
[Site "Chess.com"]
[Date "2020.12.01"]
[Round "11"]
[White "Chessalary"]
[Black "Srisshhhtea"]
[Result "0-1"]
[WhiteElo "2385"]
[BlackElo "2284"]
[TimeControl "180+1"]
[EndTime "12:06:07 PST"]
[Termination "Srisshhhtea won by resignation"]

1. e4 {[%clk 0:03:00.9]} 1... e5 {[%clk 0:02:56.5]} 2. Nf3 {[%clk 0:03:01.4]}
2... Nc6 {[%clk 0:02:55.6]} 3. Bc4 {[%clk 0:03:01.6]} 3... Nf6 {[%clk
0:02:50.9]} 4. d3 {[%clk 0:03:01.7]} 4... Be7 {[%clk 0:02:48.8]} 5. O-O {[%clk
0:03:02.2]} 5... O-O {[%clk 0:02:44.9]} 6. h3 {[%clk 0:03:02.5]} 6... d6 {[%clk
0:02:43.8]} 7. c3 {[%clk 0:03:02.8]} 7... Na5 {[%clk 0:02:41.8]} 8. Bb5 {[%clk
0:03:02.6]} 8... a6 {[%clk 0:02:41.6]} 9. Ba4 {[%clk 0:03:03]} 9... b5 {[%clk
0:02:42.5]} 10. Bc2 {[%clk 0:03:03.5]} 10... c5 {[%clk 0:02:43.4]} 11. d4 {[%clk
0:03:03.5]} 11... Qc7 {[%clk 0:02:41]} 12. dxe5 {[%clk 0:03:02.9]} 12... dxe5
{[%clk 0:02:40.7]} 13. Nbd2 {[%clk 0:03:02.8]} 13... Be6 {[%clk 0:02:38.7]} 14.
Qe2 {[%clk 0:03:02.7]} 14... Rfd8 {[%clk 0:02:35]} 15. Re1 {[%clk 0:02:59.9]}
15... h6 {[%clk 0:02:35.1]} 16. Nf1 {[%clk 0:02:56.9]} 16... c4 {[%clk 0:02:26]}
17. Ng3 {[%clk 0:02:54.4]} 17... Nb7 {[%clk 0:02:24.1]} 18. Nh4 {[%clk
0:02:51.3]} 18... Nc5 {[%clk 0:02:20.7]} 19. Nhf5 {[%clk 0:02:50.9]} 19... Bf8
{[%clk 0:02:17.7]} 20. Nh5 {[%clk 0:02:40.4]} 20... Nxh5 {[%clk 0:02:12.3]} 21.
Qxh5 {[%clk 0:02:41.3]} 21... Kh7 {[%clk 0:02:04.9]} 22. Qh4 {[%clk 0:02:23.8]}
22... Nd3 {[%clk 0:02:00.1]} 23. Bxd3 {[%clk 0:02:23.4]} 23... Rxd3 {[%clk
0:01:55.3]} 24. Be3 {[%clk 0:02:20.2]} 24... Qd8 {[%clk 0:01:52.3]} 25. Qg3
{[%clk 0:02:17.1]} 25... Qf6 {[%clk 0:01:40.1]} 26. Nh4 {[%clk 0:01:36.8]} 26...
g5 {[%clk 0:01:22.4]} 27. Nf3 {[%clk 0:01:33]} 27... Bg7 {[%clk 0:01:21.5]} 28.
Re2 {[%clk 0:01:19.7]} 28... Rad8 {[%clk 0:01:18.9]} 29. Bb6 {[%clk 0:01:16.5]}
29... R8d7 {[%clk 0:01:16.8]} 30. Re3 {[%clk 0:01:07.5]} 30... Qf4 {[%clk
0:01:14.7]} 31. Qxf4 {[%clk 0:00:52.4]} 31... gxf4 {[%clk 0:01:15.6]} 32. Rxd3
{[%clk 0:00:48.9]} 32... Rxd3 {[%clk 0:01:10.9]} 33. Kh2 {[%clk 0:00:47.6]}
33... f6 {[%clk 0:01:02]} 34. a4 {[%clk 0:00:44.4]} 34... Bd7 {[%clk 0:00:50.8]}
35. axb5 {[%clk 0:00:44]} 35... Bxb5 {[%clk 0:00:50.3]} 36. Re1 {[%clk
0:00:25.9]} 36... Bf8 {[%clk 0:00:47.7]} 37. Re2 {[%clk 0:00:24.7]} 37... Rd1
{[%clk 0:00:44.9]} 38. Nh4 {[%clk 0:00:20.1]} 38... Ba4 {[%clk 0:00:31]} 39. Nf5
{[%clk 0:00:19.5]} 39... Bb3 {[%clk 0:00:30]} 40. g3 {[%clk 0:00:17.9]} 40... f3
{[%clk 0:00:27.1]} 41. Re3 {[%clk 0:00:18]} 41... Rd2 {[%clk 0:00:25.2]} 42.
Rxf3 {[%clk 0:00:18.4]} 42... Bd1 {[%clk 0:00:22.9]} 43. Re3 {[%clk 0:00:12.5]}
43... Rxf2+ {[%clk 0:00:22.9]} 44. Kg1 {[%clk 0:00:13.1]} 44... Rxb2 {[%clk
0:00:21.1]} 45. Bd8 {[%clk 0:00:13.7]} 45... Bc5 {[%clk 0:00:19.8]} 0-1

[Event "*** Titled Tuesday Blitz"]
[Site "Chess.com"]
[Date "2020.12.01"]
[Round "11"]
[White "Slovak_fighter2000"]
[Black "LPSupi"]
[Result "1-0"]
[WhiteElo "2594"]
[BlackElo "2863"]
[TimeControl "180+1"]
[EndTime "12:06:08 PST"]
[Termination "Slovak_fighter2000 won on time"]

1. d4 {[%clk 0:03:00.9]} 1... Nf6 {[%clk 0:02:59.6]} 2. Nf3 {[%clk 0:03:01]}
2... d5 {[%clk 0:02:57.3]} 3. c4 {[%clk 0:03:00.4]} 3... e6 {[%clk 0:02:57.5]}
4. Nc3 {[%clk 0:03:00.3]} 4... Bb4 {[%clk 0:02:57.3]} 5. Bg5 {[%clk 0:02:57]}
5... h6 {[%clk 0:02:53.7]} 6. Bxf6 {[%clk 0:02:53.9]} 6... Qxf6 {[%clk
0:02:53.2]} 7. e3 {[%clk 0:02:54.8]} 7... O-O {[%clk 0:02:52.2]} 8. Bd3 {[%clk
0:02:54]} 8... dxc4 {[%clk 0:02:43.2]} 9. Bxc4 {[%clk 0:02:54.1]} 9... b6 {[%clk
0:02:37.8]} 10. O-O {[%clk 0:02:50.7]} 10... Bxc3 {[%clk 0:02:36.7]} 11. bxc3
{[%clk 0:02:49.7]} 11... Bb7 {[%clk 0:02:37.5]} 12. Ne5 {[%clk 0:02:48.2]} 12...
Qg5 {[%clk 0:02:05.8]} 13. g3 {[%clk 0:02:36.7]} 13... Nc6 {[%clk 0:01:53.8]}
14. h4 {[%clk 0:02:16.2]} 14... Qe7 {[%clk 0:01:26.4]} 15. Nxc6 {[%clk
0:02:11.6]} 15... Bxc6 {[%clk 0:01:26.3]} 16. Be2 {[%clk 0:02:08.6]} 16... Rac8
{[%clk 0:01:21.7]} 17. Bf3 {[%clk 0:02:04.2]} 17... Bd7 {[%clk 0:01:14.2]} 18.
Kg2 {[%clk 0:02:01.1]} 18... c5 {[%clk 0:01:14]} 19. a4 {[%clk 0:01:56.1]} 19...
Rc7 {[%clk 0:01:12.9]} 20. a5 {[%clk 0:01:38]} 20... b5 {[%clk 0:01:09.7]} 21.
a6 {[%clk 0:01:34.3]} 21... Rfc8 {[%clk 0:01:02.3]} 22. Qb1 {[%clk 0:01:30]}
22... Rb8 {[%clk 0:00:57.8]} 23. Qe4 {[%clk 0:01:19.1]} 23... Bc6 {[%clk
0:00:55.1]} 24. Qf4 {[%clk 0:01:18.9]} 24... Rb6 {[%clk 0:00:51.6]} 25. Bxc6
{[%clk 0:01:16.2]} 25... Rcxc6 {[%clk 0:00:51.1]} 26. Rfb1 {[%clk 0:01:11.6]}
26... cxd4 {[%clk 0:00:48.4]} 27. cxd4 {[%clk 0:01:10.9]} 27... b4 {[%clk
0:00:48.5]} 28. Qe5 {[%clk 0:00:47.6]} 28... Qd7 {[%clk 0:00:43.3]} 29. Rb3
{[%clk 0:00:39.3]} 29... Rc4 {[%clk 0:00:40.4]} 30. Qe4 {[%clk 0:00:31.1]} 30...
Qb5 {[%clk 0:00:18.8]} 31. Qa8+ {[%clk 0:00:30.8]} 31... Kh7 {[%clk 0:00:18.6]}
32. Qe4+ {[%clk 0:00:30.3]} 32... Kg8 {[%clk 0:00:17]} 33. Qa8+ {[%clk
0:00:29.8]} 33... Rb8 {[%clk 0:00:16.1]} 34. Qxa7 {[%clk 0:00:26.8]} 34... Qd5+
{[%clk 0:00:08.6]} 35. Kg1 {[%clk 0:00:21]} 35... Rbc8 {[%clk 0:00:08.7]} 36.
Rbb1 {[%clk 0:00:18.6]} 36... b3 {[%clk 0:00:09]} 37. Qb7 {[%clk 0:00:17.5]}
37... Qf5 {[%clk 0:00:07]} 38. Qxb3 {[%clk 0:00:15]} 38... Rc2 {[%clk
0:00:04.1]} 39. Rf1 {[%clk 0:00:15]} 39... R8c3 {[%clk 0:00:03.2]} 40. Qb8+
{[%clk 0:00:14.4]} 40... Kh7 {[%clk 0:00:03.6]} 41. Qf4 {[%clk 0:00:14.8]} 41...
Qh3 {[%clk 0:00:03.1]} 42. a7 {[%clk 0:00:12.2]} 42... Rb3 {[%clk 0:00:01.4]}
43. a8=Q {[%clk 0:00:11.6]} 1-0

[Event "*** Titled Tuesday Blitz"]
[Site "Chess.com"]
[Date "2020.12.01"]
[Round "11"]
[White "mjray79"]
[Black "MarceloPlaya"]
[Result "1-0"]
[WhiteElo "2425"]
[BlackElo "2275"]
[TimeControl "180+1"]
[EndTime "12:06:11 PST"]
[Termination "mjray79 won on time"]

1. d4 {[%clk 0:03:00.9]} 1... e6 {[%clk 0:02:59.5]} 2. c4 {[%clk 0:03:01.3]}
2... Nf6 {[%clk 0:02:59.4]} 3. g3 {[%clk 0:03:00.9]} 3... Bb4+ {[%clk
0:02:59.2]} 4. Bd2 {[%clk 0:03:00.3]} 4... Bxd2+ {[%clk 0:02:59.3]} 5. Qxd2
{[%clk 0:03:01.2]} 5... O-O {[%clk 0:02:59.3]} 6. Bg2 {[%clk 0:03:01.7]} 6... d5
{[%clk 0:02:59]} 7. Nf3 {[%clk 0:03:01.8]} 7... Qe7 {[%clk 0:02:59.2]} 8. O-O
{[%clk 0:03:01.7]} 8... Rd8 {[%clk 0:02:59.3]} 9. Na3 {[%clk 0:02:59.3]} 9...
Nc6 {[%clk 0:02:58.2]} 10. Rac1 {[%clk 0:02:56.4]} 10... Bd7 {[%clk 0:02:57.7]}
11. Rfd1 {[%clk 0:02:54.1]} 11... Be8 {[%clk 0:02:57.8]} 12. Ne5 {[%clk
0:02:52]} 12... Rac8 {[%clk 0:02:53.2]} 13. Qc2 {[%clk 0:02:44.2]} 13... Nb8
{[%clk 0:02:44.8]} 14. cxd5 {[%clk 0:02:40.3]} 14... exd5 {[%clk 0:02:41.5]} 15.
Nb1 {[%clk 0:02:31.8]} 15... c5 {[%clk 0:02:30.4]} 16. Nd3 {[%clk 0:02:13.6]}
16... c4 {[%clk 0:02:09.1]} 17. Ne5 {[%clk 0:02:10.2]} 17... Nc6 {[%clk
0:02:05.8]} 18. Nxc6 {[%clk 0:02:06]} 18... Bxc6 {[%clk 0:01:53.2]} 19. Nc3
{[%clk 0:02:05.2]} 19... b5 {[%clk 0:01:51.2]} 20. Re1 {[%clk 0:02:02.3]} 20...
b4 {[%clk 0:01:49.4]} 21. Nd1 {[%clk 0:01:59.1]} 21... a5 {[%clk 0:01:34.6]} 22.
Ne3 {[%clk 0:01:55.2]} 22... Re8 {[%clk 0:01:24.2]} 23. Nf5 {[%clk 0:01:41]}
23... Qc7 {[%clk 0:01:21.2]} 24. Qd2 {[%clk 0:01:35.8]} 24... Ne4 {[%clk
0:01:16.8]} 25. Bxe4 {[%clk 0:01:23.1]} 25... Rxe4 {[%clk 0:01:15.9]} 26. f3
{[%clk 0:01:21]} 26... Ree8 {[%clk 0:01:13.2]} 27. e4 {[%clk 0:01:19.4]} 27...
dxe4 {[%clk 0:01:11.7]} 28. d5 {[%clk 0:01:19.4]} 28... Bb5 {[%clk 0:00:56.3]}
29. fxe4 {[%clk 0:01:16.7]} 29... c3 {[%clk 0:00:55.5]} 30. bxc3 {[%clk
0:01:16]} 30... bxc3 {[%clk 0:00:55.1]} 31. Qd4 {[%clk 0:01:16.2]} 31... Qe5
{[%clk 0:00:45.2]} 32. Qxe5 {[%clk 0:01:13.4]} 32... Rxe5 {[%clk 0:00:44.2]} 33.
Nd6 {[%clk 0:01:14]} 33... Rc5 {[%clk 0:00:40.3]} 34. Rb1 {[%clk 0:01:00.1]}
34... Be8 {[%clk 0:00:35.5]} 35. Rb8 {[%clk 0:00:52.4]} 35... Kf8 {[%clk
0:00:34.6]} 36. Rc1 {[%clk 0:00:41.7]} 36... Rc7 {[%clk 0:00:25.2]} 37. Kf2
{[%clk 0:00:38.2]} 37... g6 {[%clk 0:00:22.4]} 38. Ke3 {[%clk 0:00:36.4]} 38...
f5 {[%clk 0:00:21.2]} 39. Kd4 {[%clk 0:00:33.1]} 39... Ree7 {[%clk 0:00:19.3]}
40. e5 {[%clk 0:00:31.5]} 40... Rcd7 {[%clk 0:00:12.5]} 41. Rxc3 {[%clk
0:00:29.2]} 41... g5 {[%clk 0:00:09.7]} 42. Rcc8 {[%clk 0:00:29]} 42... Rxd6
{[%clk 0:00:07.9]} 43. exd6 {[%clk 0:00:29]} 43... Re4+ {[%clk 0:00:08.1]} 44.
Kd3 {[%clk 0:00:29.3]} 44... Kf7 {[%clk 0:00:07.3]} 45. Rb7+ {[%clk 0:00:27.3]}
45... Kf6 {[%clk 0:00:06.7]} 46. d7 {[%clk 0:00:27.4]} 46... Bxd7 {[%clk
0:00:05.6]} 47. Rxd7 {[%clk 0:00:27.7]} 47... Ra4 {[%clk 0:00:05.5]} 48. Rxh7
{[%clk 0:00:26.6]} 48... Rxa2 {[%clk 0:00:03.6]} 49. Rc6+ {[%clk 0:00:26.7]}
49... Ke5 {[%clk 0:00:03.2]} 50. d6 {[%clk 0:00:26.2]} 50... Ra1 {[%clk
0:00:02.6]} 51. d7 {[%clk 0:00:25.4]} 51... Rd1+ {[%clk 0:00:02.5]} 52. Kc2
{[%clk 0:00:25.4]} 1-0

[Event "*** Titled Tuesday Blitz"]
[Site "Chess.com"]
[Date "2020.12.01"]
[Round "11"]
[White "CakeinSpace2002"]
[Black "ehrenfeld"]
[Result "0-1"]
[WhiteElo "2376"]
[BlackElo "2493"]
[TimeControl "180+1"]
[EndTime "12:06:12 PST"]
[Termination "ehrenfeld won by checkmate"]

1. d4 {[%clk 0:03:00.8]} 1... Nf6 {[%clk 0:02:59.1]} 2. c4 {[%clk 0:03:00.8]}
2... e6 {[%clk 0:02:59]} 3. Nc3 {[%clk 0:03:00.8]} 3... Bb4 {[%clk 0:02:59]} 4.
e3 {[%clk 0:03:01.1]} 4... b6 {[%clk 0:02:58.2]} 5. Ne2 {[%clk 0:02:59.1]} 5...
Ba6 {[%clk 0:02:57]} 6. a3 {[%clk 0:02:57.4]} 6... Bxc3+ {[%clk 0:02:56.9]} 7.
Nxc3 {[%clk 0:02:57.9]} 7... d5 {[%clk 0:02:57.3]} 8. cxd5 {[%clk 0:02:57.6]}
8... Bxf1 {[%clk 0:02:56.5]} 9. Kxf1 {[%clk 0:02:57.5]} 9... Nxd5 {[%clk
0:02:56.6]} 10. Qg4 {[%clk 0:02:51.1]} 10... O-O {[%clk 0:02:54.5]} 11. e4
{[%clk 0:02:47.5]} 11... f5 {[%clk 0:02:49]} 12. exf5 {[%clk 0:02:39.1]} 12...
Rxf5 {[%clk 0:02:27.1]} 13. Bh6 {[%clk 0:02:26.3]} 13... Qf6 {[%clk 0:02:23.6]}
14. Nxd5 {[%clk 0:01:54.6]} 14... Rxf2+ {[%clk 0:01:19.9]} 15. Kg1 {[%clk
0:01:46.4]} 15... exd5 {[%clk 0:01:19.9]} 16. Qc8+ {[%clk 0:01:19.8]} 16... Qf8
{[%clk 0:01:18.8]} 17. Qe6+ {[%clk 0:00:58]} 17... Kh8 {[%clk 0:01:04.9]} 18.
Be3 {[%clk 0:00:51.1]} 18... Rf5 {[%clk 0:01:01.5]} 19. g4 {[%clk 0:00:46.7]}
19... Rf6 {[%clk 0:00:51.2]} 20. Qxd5 {[%clk 0:00:45.8]} 20... Nc6 {[%clk
0:00:51.2]} 21. Kg2 {[%clk 0:00:32.9]} 21... Rd8 {[%clk 0:00:49.3]} 22. Qe4
{[%clk 0:00:31.2]} 22... Nxd4 {[%clk 0:00:43]} 23. Bxd4 {[%clk 0:00:26.4]} 23...
Rf4 {[%clk 0:00:42.6]} 24. Rhf1 {[%clk 0:00:18.6]} 24... Rxe4 {[%clk 0:00:36.8]}
25. Rxf8+ {[%clk 0:00:17.3]} 25... Rxf8 {[%clk 0:00:36.8]} 26. Bc3 {[%clk
0:00:16.8]} 26... Kg8 {[%clk 0:00:35]} 27. Rd1 {[%clk 0:00:16.6]} 27... Re7
{[%clk 0:00:34.9]} 28. h3 {[%clk 0:00:16.3]} 28... c5 {[%clk 0:00:34.2]} 29. Kg3
{[%clk 0:00:16.2]} 29... Kf7 {[%clk 0:00:34.1]} 30. h4 {[%clk 0:00:16.4]} 30...
Rfe8 {[%clk 0:00:32.8]} 31. g5 {[%clk 0:00:15.6]} 31... g6 {[%clk 0:00:33]} 32.
Rf1+ {[%clk 0:00:15.1]} 32... Ke6 {[%clk 0:00:32.8]} 33. Rd1 {[%clk 0:00:14]}
33... Kf5 {[%clk 0:00:29.8]} 34. Rf1+ {[%clk 0:00:13.2]} 34... Ke4 {[%clk
0:00:29.4]} 35. Bf6 {[%clk 0:00:13.1]} 35... Re6 {[%clk 0:00:27.7]} 36. Rf4+
{[%clk 0:00:12.8]} 36... Kd3 {[%clk 0:00:27.2]} 37. Ra4 {[%clk 0:00:11.9]} 37...
Re3+ {[%clk 0:00:26.4]} 38. Kg2 {[%clk 0:00:11.8]} 38... a5 {[%clk 0:00:25.2]}
39. b4 {[%clk 0:00:11.2]} 39... R8e4 {[%clk 0:00:24.5]} 40. Kf2 {[%clk
0:00:02.7]} 40... Rc4 {[%clk 0:00:21.8]} 41. Bd8 {[%clk 0:00:02.6]} 41... cxb4
{[%clk 0:00:17.4]} 42. axb4 {[%clk 0:00:02.5]} 42... Re2+ {[%clk 0:00:14.1]} 43.
Kf1 {[%clk 0:00:02.4]} 43... Rc1# {[%clk 0:00:13.6]} 0-1

[Event "*** Titled Tuesday Blitz"]
[Site "Chess.com"]
[Date "2020.12.01"]
[Round "11"]
[White "Vojtap"]
[Black "c_r_e_e_p_e_r"]
[Result "0-1"]
[WhiteElo "2123"]
[BlackElo "2286"]
[TimeControl "180+1"]
[EndTime "12:06:12 PST"]
[Termination "c_r_e_e_p_e_r won on time"]

1. e4 {[%clk 0:03:00.9]} 1... c5 {[%clk 0:03:00.1]} 2. Nf3 {[%clk 0:03:00]} 2...
e6 {[%clk 0:03:00.7]} 3. d4 {[%clk 0:03:00.5]} 3... cxd4 {[%clk 0:03:01.4]} 4.
Nxd4 {[%clk 0:03:01.2]} 4... a6 {[%clk 0:03:02.1]} 5. Nc3 {[%clk 0:02:49.8]}
5... Qc7 {[%clk 0:03:02.7]} 6. Be2 {[%clk 0:02:46.6]} 6... Nf6 {[%clk
0:03:03.2]} 7. O-O {[%clk 0:02:46.2]} 7... Nc6 {[%clk 0:03:03.7]} 8. Be3 {[%clk
0:02:45.7]} 8... d6 {[%clk 0:03:04.1]} 9. f4 {[%clk 0:02:45.2]} 9... Be7 {[%clk
0:03:03.7]} 10. a4 {[%clk 0:02:44.4]} 10... Bd7 {[%clk 0:03:04]} 11. Nb3 {[%clk
0:02:29.6]} 11... b6 {[%clk 0:03:04.3]} 12. Kh1 {[%clk 0:02:26]} 12... Bc8
{[%clk 0:03:04.4]} 13. Qe1 {[%clk 0:02:23.5]} 13... Bb7 {[%clk 0:03:05]} 14. Qg3
{[%clk 0:02:21.3]} 14... Nb4 {[%clk 0:03:05.1]} 15. Rac1 {[%clk 0:02:13]} 15...
Nxe4 {[%clk 0:03:00.3]} 16. Nxe4 {[%clk 0:02:02.2]} 16... Bxe4 {[%clk
0:03:01.2]} 17. Qxg7 {[%clk 0:02:01.9]} 17... O-O-O {[%clk 0:03:01.4]} 18. Qd4
{[%clk 0:01:56.7]} 18... d5 {[%clk 0:02:52.9]} 19. c3 {[%clk 0:01:53.7]} 19...
Bc5 {[%clk 0:02:48.5]} 20. Qd2 {[%clk 0:01:52.4]} 20... Nc6 {[%clk 0:02:41.4]}
21. Bxa6+ {[%clk 0:01:51.4]} 21... Kb8 {[%clk 0:02:42.1]} 22. Nxc5 {[%clk
0:01:43.1]} 22... bxc5 {[%clk 0:02:38.4]} 23. Bxc5 {[%clk 0:01:43.2]} 23... Rhg8
{[%clk 0:02:38]} 24. Rf2 {[%clk 0:01:41.9]} 24... Rg4 {[%clk 0:02:20.1]} 25. b4
{[%clk 0:01:39.1]} 25... Rdg8 {[%clk 0:02:19.9]} 26. Bf1 {[%clk 0:01:37.5]}
26... Na5 {[%clk 0:02:11.6]} 27. Re1 {[%clk 0:01:14.5]} 27... Nc4 {[%clk
0:02:11]} 28. Bxc4 {[%clk 0:01:11.5]} 28... Rxg2 {[%clk 0:02:08.2]} 29. Rxg2
{[%clk 0:00:46]} 29... Rxg2 {[%clk 0:02:08.5]} 30. Qxg2 {[%clk 0:00:34.9]} 30...
Bxg2+ {[%clk 0:02:07.9]} 31. Kxg2 {[%clk 0:00:35.8]} 31... dxc4 {[%clk 0:02:06]}
32. Rd1 {[%clk 0:00:36.3]} 32... Qc6+ {[%clk 0:02:02.9]} 33. Kg3 {[%clk
0:00:35.9]} 33... Qxa4 {[%clk 0:02:01.3]} 34. Rd8+ {[%clk 0:00:27.6]} 34... Kc7
{[%clk 0:02:00.3]} 35. Rf8 {[%clk 0:00:25.8]} 35... Qd7 {[%clk 0:01:57]} 36. Bd4
{[%clk 0:00:24.5]} 36... Qe7 {[%clk 0:01:49]} 37. Ra8 {[%clk 0:00:24]} 37... Kc6
{[%clk 0:01:28.9]} 38. Ra6+ {[%clk 0:00:22.5]} 38... Kd5 {[%clk 0:01:27.3]} 39.
Kf3 {[%clk 0:00:20.1]} 39... Qb7 {[%clk 0:00:57.3]} 40. Ra7 {[%clk 0:00:15.3]}
40... Qc6 {[%clk 0:00:53.7]} 41. Ra5+ {[%clk 0:00:12.6]} 41... Kd6+ {[%clk
0:00:53.1]} 42. Kg3 {[%clk 0:00:08.9]} 42... Qe4 {[%clk 0:00:40.5]} 43. Re5
{[%clk 0:00:07.2]} 43... Qd3+ {[%clk 0:00:36.7]} 44. Re3 {[%clk 0:00:07]} 44...
Qg6+ {[%clk 0:00:36.7]} 45. Kh3 {[%clk 0:00:05.5]} 45... Qh5+ {[%clk 0:00:36]}
46. Kg3 {[%clk 0:00:05.3]} 46... Qf5 {[%clk 0:00:33.2]} 47. Re5 {[%clk
0:00:04.4]} 47... Qd3+ {[%clk 0:00:29.5]} 48. Re3 {[%clk 0:00:04.3]} 48... Qg6+
{[%clk 0:00:30.1]} 49. Kf2 {[%clk 0:00:03.3]} 49... Qf5 {[%clk 0:00:21.7]} 50.
Kg3 {[%clk 0:00:03.1]} 50... h5 {[%clk 0:00:20.8]} 0-1